bitfinex/quotes_BTCUSD_20250205
["timestamp","ask_amount","ask_price","bid_price","bid_amount"]
[1738794327443,0.00046809,96589.0,96588.0,0.6289905]
[1738794327963,0.0002245,96607.0,96588.0,0.6289905]
[1738794327964,0.00019259,96607.0,96606.0,0.155269]
[1738794328215,0.00033292,96607.0,96606.0,0.43678075]
[1738794333360,0.00033292,96607.0,96606.0,0.44678075]
[1738794333600,0.00033292,96607.0,96606.0,0.63308075]
[1738794333843,0.00033292,96607.0,96606.0,0.64308075]
[1738794334059,0.00033292,96607.0,96606.0,0.72438075]
[1738794335223,0.00033292,96607.0,96606.0,0.71438075]
[1738794336173,0.00022428,96633.0,96615.0,0.155255]
[1738794336380,0.00022428,96633.0,96615.0,0.43179331]
[1738794336632,0.00022428,96633.0,96615.0,0.43075865]
[1738794339864,0.0778,96630.0,96615.0,0.10250365]
[1738794340076,0.155233,96629.0,96615.0,0.10250365]
[1738794340279,0.0497,96628.0,96615.0,0.10250365]
[1738794341413,0.0497,96628.0,96615.0,0.10353851]
[1738794341792,0.0497,96628.0,96615.0,0.25775865]
[1738794341993,0.155238,96626.0,96615.0,0.10250365]
[1738794342399,0.25668,96628.0,96615.0,0.10250365]
[1738794342646,0.15546428,96625.0,96615.0,0.10250365]
[1738794342879,0.155242,96624.0,96607.0,0.155266]
[1738794343085,0.1364665,96624.0,96608.0,0.10250365]
[1738794343282,0.1364665,96624.0,96608.0,0.25776965]
[1738794343456,0.00391232,96623.0,96608.0,0.25776965]
[1738794344407,0.15915532,96623.0,96608.0,0.10250365]
[1738794344814,0.155244,96622.0,96608.0,0.10250365]
[1738794345194,0.00391131,96621.0,96608.0,0.10250365]
[1738794345826,0.155257,96614.0,96608.0,0.10250365]
[1738794346000,0.00104057,96619.0,96606.0,0.0001068]
[1738794346202,0.155265,96609.0,96606.0,0.0001068]
[1738794346605,0.155268,96607.0,96606.0,0.0001068]
[1738794347033,0.20526728,96607.0,96606.0,0.0001068]
[1738794347270,0.28626728,96607.0,96606.0,0.0001068]
[1738794347614,0.43626728,96607.0,96606.0,0.0001068]
[1738794348829,0.53877093,96607.0,96606.0,0.0001068]
[1738794351494,0.43626728,96607.0,96606.0,0.0001068]
[1738794351881,0.53877093,96607.0,96606.0,0.0001068]
[1738794357990,0.60093093,96607.0,96606.0,0.0001068]
[1738794358807,0.43626728,96607.0,96606.0,0.0001068]
[1738794359231,0.53877093,96607.0,96606.0,0.0001068]
[1738794361118,0.60093093,96607.0,96606.0,0.0001068]
[1738794366129,0.43626728,96607.0,96606.0,0.0001068]
[1738794370643,0.305281,96599.0,96598.0,0.0014976]
[1738794371102,0.30925502,96599.0,96598.0,0.0014976]
[1738794372157,0.00397402,96599.0,96598.0,0.0014976]
[1738794372356,0.155275,96603.0,96598.0,0.0014976]
[1738794372678,0.207028,96606.0,96598.0,0.0014976]
[1738794372679,0.00396725,96602.0,96598.0,0.0014976]
[1738794373059,0.207015,96611.0,96598.0,0.0014976]
[1738794373263,0.00397501,96601.0,96598.0,0.0014976]
[1738794373465,0.00022428,96616.0,96599.0,0.10250365]
[1738794373670,0.00022428,96616.0,96601.0,0.0465]
[1738794373989,0.00022428,96616.0,96603.0,0.155274]
[1738794374192,0.0039773,96615.0,96604.0,0.10353865]
[1738794374756,0.00022428,96616.0,96610.0,0.155263]
[1738794374952,0.00022428,96616.0,96610.0,0.10250365]
[1738794375153,0.00398204,96615.0,96610.0,0.10250365]
[1738794376408,0.207009,96614.0,96608.0,0.1560081]
[1738794376623,0.155263,96610.0,96608.0,0.1560081]
[1738794376844,0.21099404,96613.0,96597.0,0.1560081]
[1738794377007,0.15527,96606.0,96599.0,0.10250365]
[1738794377206,0.155278,96601.0,96597.0,0.1560081]
[1738794377460,0.00397451,96600.0,96597.0,0.1560081]
[1738794377664,0.00397451,96600.0,96584.0,0.1560081]
[1738794377665,0.155281,96599.0,96584.0,0.1560081]
[1738794378073,0.16030261,96599.0,96584.0,0.1560081]
[1738794378277,0.15926204,96599.0,96584.0,0.1560081]
[1738794379745,0.16030261,96599.0,96584.0,0.1560081]
[1738794380184,0.31030261,96599.0,96584.0,0.1560081]
[1738794380387,0.38436204,96599.0,96584.0,0.1560081]
[1738794380965,0.48686569,96599.0,96584.0,0.1560081]
[1738794381365,0.15,96598.0,96584.0,0.1560081]
[1738794381598,0.155303,96585.0,96584.0,0.15614843]
[1738794381771,0.15927701,96585.0,96584.0,0.15614843]
[1738794382761,0.15927701,96585.0,96584.0,0.00014033]
[1738794382944,0.23561758,96585.0,96584.0,0.00014033]
[1738794383178,0.21557701,96585.0,96584.0,0.00014033]
[1738794383488,0.22561896,96585.0,96584.0,0.00014033]
[1738794384022,0.47812261,96585.0,96584.0,0.00014033]
[1738794384874,0.15,96583.0,96560.0,0.0024696]
[1738794385074,0.155342,96561.0,96560.0,0.0024696]
[1738794385502,0.15930394,96561.0,96560.0,0.0024696]
[1738794387986,0.14030394,96561.0,96560.0,0.0024696]
[1738794389396,0.14030394,96561.0,96560.0,0.0025765]
[1738794390008,0.39384816,96561.0,96560.0,0.0025765]
[1738794390200,0.39280759,96561.0,96560.0,0.0025765]
[1738794393562,0.45496759,96561.0,96560.0,0.0025765]
[1738794398713,0.45496759,96561.0,96560.0,5e-07]
[1738794398918,0.46496759,96561.0,96560.0,5e-07]
[1738794399278,0.48796759,96561.0,96560.0,5e-07]
[1738794400484,0.46496759,96561.0,96560.0,5e-07]
[1738794400911,0.60047124,96561.0,96560.0,5e-07]
[1738794401694,0.60069574,96561.0,96560.0,5e-07]
[1738794403356,0.59069574,96561.0,96560.0,5e-07]
[1738794404585,0.56769574,96561.0,96560.0,5e-07]
[1738794406944,0.305392,96530.0,96529.0,0.01923808]
[1738794407280,0.30928881,96530.0,96529.0,0.01923808]
[1738794408339,0.30928881,96530.0,96529.0,0.01970617]
[1738794410856,0.305393,96529.0,96528.0,0.0001068]
[1738794411178,0.30928964,96529.0,96528.0,0.00024717]
[1738794413050,0.155408,96520.0,96519.0,0.03076541]
[1738794413468,0.00389211,96520.0,96519.0,0.03076541]
[1738794413833,0.155406,96521.0,96519.0,0.03076541]
[1738794414224,0.15930011,96520.0,96519.0,0.03076541]
[1738794414425,0.15930011,96520.0,96507.0,0.00103604]
[1738794414641,0.00389211,96520.0,96507.0,0.00103604]
[1738794414797,0.207209,96521.0,96507.0,0.00103604]
[1738794414964,0.03076541,96519.0,96506.0,0.00103604]
[1738794415165,0.00389111,96518.0,96506.0,0.00103604]
[1738794415989,0.00389111,96518.0,96503.0,0.207245]
[1738794416183,0.00389111,96518.0,96502.0,0.1560081]
[1738794416184,0.00389111,96518.0,96509.0,0.0001069]
[1738794416416,0.00389111,96518.0,96511.0,0.0481]
[1738794416618,0.00389111,96518.0,96511.0,0.04913604]
[1738794416792,0.00389111,96518.0,96511.0,0.0481]
[1738794417951,0.01565652,96519.0,96511.0,0.0481]
[1738794418127,0.00388914,96517.0,96511.0,0.0481]
[1738794418297,0.00356539,96518.0,96511.0,0.0481]
[1738794418496,0.00356438,96516.0,96511.0,0.0481]
[1738794418696,0.00356488,96517.0,96511.0,0.0481]
[1738794418949,0.00356388,96515.0,96511.0,0.0481]
[1738794419167,0.00356337,96514.0,96511.0,0.0481]
[1738794419368,0.01565652,96519.0,96511.0,0.0481]
[1738794419574,0.00356539,96518.0,96511.0,0.0481]
[1738794419886,0.00356539,96518.0,96517.0,0.155413]
[1738794420087,0.00356539,96518.0,96517.0,0.41496069]
[1738794420313,0.01565652,96519.0,96518.0,0.280411]
[1738794420520,0.01565652,96519.0,96518.0,0.41515608]
[1738794420905,0.00730537,96519.0,96518.0,0.43815608]
[1738794421588,0.01004391,96567.0,96560.0,0.155343]
[1738794421814,0.00069181,96561.0,96558.0,0.0769]
[1738794423295,0.00326851,96560.0,96558.0,0.0769]
[1738794423698,0.00069181,96561.0,96558.0,0.0769]
[1738794423883,0.00069181,96561.0,96559.0,0.0193436]
[1738794424690,0.00326851,96560.0,96559.0,0.0193436]
[1738794425052,0.00069181,96561.0,96558.0,0.0769]
[1738794425442,0.00326851,96560.0,96558.0,0.0769]
[1738794425590,0.00069181,96561.0,96558.0,0.0769]
[1738794426008,0.00326851,96560.0,96553.0,0.1560081]
[1738794426176,0.00326851,96560.0,96530.0,0.023]
[1738794426177,0.00069181,96561.0,96542.0,0.0778]
[1738794426381,0.155351,96556.0,96543.0,0.10250365]
[1738794426605,0.00327826,96555.0,96543.0,0.10250365]
[1738794426981,0.15535,96556.0,96543.0,0.10250365]
[1738794427179,0.00327822,96555.0,96543.0,0.10250365]
[1738794427873,0.00327822,96555.0,96543.0,0.25787465]
[1738794428225,0.00327519,96554.0,96543.0,0.25787465]
[1738794428472,0.155347,96558.0,96543.0,0.25787465]
[1738794428697,0.00327469,96553.0,96543.0,0.25787465]
[1738794428872,0.155347,96558.0,96543.0,0.10250365]
[1738794429072,0.00327418,96552.0,96543.0,0.10250365]
[1738794429216,0.00069181,96561.0,96544.0,0.0203426]
[1738794429413,0.00327821,96560.0,96547.0,0.155363]
[1738794429623,0.00327821,96560.0,96548.0,0.10353928]
[1738794430032,0.00327821,96560.0,96548.0,0.10250365]
[1738794430442,0.00327821,96560.0,96548.0,0.10353929]
[1738794430725,0.00069181,96561.0,96549.0,0.02034259]
[1738794430987,0.00069181,96561.0,96560.0,0.077]
[1738794431177,0.00069181,96561.0,96560.0,0.45958635]
[1738794431361,0.00069181,96561.0,96560.0,0.49072824]
[1738794431771,0.00069181,96561.0,96560.0,0.50900722]
[1738794431928,0.00069181,96561.0,96560.0,0.49072824]
[1738794432331,0.155283,96598.0,96580.0,0.15531]
[1738794432590,0.00014018,96598.0,96581.0,0.00103524]
[1738794432725,0.00331848,96597.0,96582.0,0.0805]
[1738794432927,0.13642318,96598.0,96582.0,0.08153524]
[1738794433157,0.00331797,96596.0,96590.0,0.03082252]
[1738794433407,0.207038,96601.0,96590.0,0.03082252]
[1738794433408,0.00331848,96597.0,96590.0,0.03082252]
[1738794433581,0.00332526,96595.0,96593.0,0.23728604]
[1738794433808,0.00332576,96596.0,96595.0,0.155287]
[1738794433951,0.00022428,96635.0,96597.0,0.023]
[1738794434295,0.00022428,96635.0,96596.0,0.0785]
[1738794434296,0.00022428,96635.0,96599.0,0.023]
[1738794434498,0.00022428,96635.0,96613.0,0.155257]
[1738794434701,0.00022428,96635.0,96614.0,0.10250365]
[1738794435263,0.00022428,96635.0,96614.0,0.23043848]
[1738794435488,0.00022428,96635.0,96614.0,0.22940365]
[1738794435660,0.155228,96632.0,96614.0,0.22940365]
[1738794435896,0.155228,96632.0,96614.0,0.2487106]
[1738794436428,0.00022428,96635.0,96614.0,0.2487106]
[1738794437867,0.155225,96634.0,96614.0,0.2487106]
[1738794438075,0.13734662,96634.0,96617.0,0.155251]
[1738794438294,0.00014026,96633.0,96618.0,0.10353848]
[1738794438514,0.00348461,96633.0,96618.0,0.10353848]
[1738794439266,0.00348461,96633.0,96619.0,0.01930695]
[1738794439476,0.00348461,96633.0,96620.0,0.10353848]
[1738794439655,0.00014026,96633.0,96620.0,0.10353848]
[1738794440245,0.00334384,96632.0,96624.0,0.08199704]
[1738794440459,0.00014026,96633.0,96626.0,0.023]
[1738794440791,0.00014026,96633.0,96632.0,0.155228]
[1738794440991,0.00014026,96633.0,96632.0,0.25876626]
[1738794441121,0.00014026,96633.0,96632.0,0.28073165]
[1738794441326,0.00014026,96633.0,96632.0,0.3761604]
[1738794441658,0.00014026,96633.0,96632.0,0.40038106]
[1738794448571,0.00022428,96642.0,96641.0,0.155213]
[1738794448777,0.00022428,96642.0,96641.0,0.43775924]
[1738794448961,0.00022428,96642.0,96641.0,0.43672475]
[1738794450664,0.00022428,96642.0,96641.0,0.4558535]
[1738794451076,0.00022428,96642.0,96641.0,0.4328535]
[1738794453042,0.00022428,96642.0,96641.0,0.2776405]
[1738794453243,0.00022428,96642.0,96641.0,0.1216324]
[1738794453462,0.15521,96643.0,96641.0,0.01912875]
[1738794453806,0.00339452,96642.0,96625.0,0.155237]
[1738794453938,0.00339452,96642.0,96626.0,0.25773965]
[1738794454599,0.00339452,96642.0,96626.0,0.10250365]
[1738794454600,0.155213,96641.0,96626.0,0.10250365]
[1738794454767,0.155226,96633.0,96616.0,0.3112601]
[1738794454947,0.206957,96639.0,96622.0,0.00014026]
[1738794455154,0.155227,96633.0,96623.0,0.10250365]
[1738794455351,0.155228,96632.0,96623.0,0.10250365]
[1738794455557,0.155228,96632.0,96622.0,0.00014026]
[1738794455559,0.155242,96623.0,96622.0,0.00014026]
[1738794455956,0.15861755,96623.0,96622.0,0.00014026]
[1738794456617,0.23651755,96623.0,96622.0,0.00014026]
[1738794457381,0.24698077,96623.0,96622.0,0.00014026]
[1738794459275,0.34948442,96623.0,96622.0,0.00014026]
[1738794459800,0.30948442,96623.0,96622.0,0.00014026]
[1738794459940,0.34948442,96623.0,96622.0,0.00014026]
[1738794460957,0.49948442,96623.0,96622.0,0.00014026]
[1738794461137,0.39698077,96623.0,96622.0,0.00014026]
[1738794461367,0.49948442,96623.0,96622.0,0.00014026]
[1738794462352,0.54808442,96623.0,96622.0,0.00024706]
[1738794464113,0.388155,96615.0,96614.0,0.0001068]
[1738794464326,0.49065865,96615.0,96614.0,0.0001068]
[1738794464525,0.49411981,96615.0,96614.0,0.0001068]
[1738794467835,0.49411981,96615.0,96594.0,0.08199704]
[1738794467836,0.155287,96595.0,96594.0,0.08199704]
[1738794468037,0.305287,96595.0,96594.0,0.08199704]
[1738794468170,0.15,96594.0,96573.0,0.08199704]
[1738794468370,0.15,96594.0,96583.0,0.08213722]
[1738794468600,0.155305,96584.0,96583.0,0.00014018]
[1738794468988,0.15875007,96584.0,96583.0,0.00014018]
[1738794469576,0.00344507,96584.0,96583.0,0.00014018]
[1738794470020,0.207069,96587.0,96583.0,0.00014018]
[1738794470248,0.305305,96584.0,96583.0,0.00014018]
[1738794470581,0.39163837,96584.0,96583.0,0.00014018]
[1738794470980,0.54254202,96584.0,96583.0,0.00014018]
[1738794471900,0.54254202,96584.0,96536.0,0.08199704]
[1738794471901,0.023,96578.0,96536.0,0.08199704]
[1738794472101,0.155359,96550.0,96536.0,0.08199704]
[1738794472499,0.00350205,96550.0,96536.0,0.08199704]
[1738794472904,0.00350205,96550.0,96529.0,0.28549]
[1738794473171,0.155364,96547.0,96530.0,0.25789365]
[1738794473405,0.155504,96547.0,96530.0,0.25789365]
[1738794473607,0.00349629,96546.0,96530.0,0.25789365]
[1738794473756,0.15886329,96546.0,96530.0,0.10250365]
[1738794473978,0.15886329,96546.0,96530.0,0.25789465]
[1738794475031,0.00349629,96546.0,96531.0,0.155389]
[1738794475246,0.00349629,96546.0,96530.0,0.10261045]
[1738794475447,0.15886229,96546.0,96530.0,0.25800245]
[1738794475598,0.00349629,96546.0,96531.0,0.155389]
[1738794476010,0.00349629,96546.0,96530.0,0.0001068]
[1738794476302,0.207159,96544.0,96530.0,0.0001068]
[1738794476451,0.155374,96541.0,96530.0,0.0001068]
[1738794476849,0.00349327,96540.0,96530.0,0.0001068]
[1738794477055,0.155376,96540.0,96530.0,0.0001068]
[1738794477229,0.155379,96538.0,96530.0,0.0001068]
[1738794477425,0.00014,96547.0,96530.0,0.0001068]
[1738794477426,0.15887177,96539.0,96530.0,0.0001068]
[1738794477632,0.00349176,96537.0,96530.0,0.0001068]
[1738794477885,0.00349226,96538.0,96530.0,0.0001068]
[1738794478087,0.00320082,96537.0,96530.0,0.0001068]
[1738794478294,0.13987026,96539.0,96530.0,0.0001068]
[1738794478489,0.00320133,96538.0,96530.0,0.0001068]
[1738794479075,0.155379,96538.0,96530.0,0.0001068]
[1738794479409,0.00320082,96537.0,96530.0,0.0001068]
[1738794479753,0.15539,96531.0,96530.0,0.0001068]
[1738794479953,0.15,96531.0,96530.0,0.0001068]
[1738794480153,0.1531978,96531.0,96530.0,0.0001068]
[1738794483563,0.0031978,96531.0,96530.0,0.0001068]
[1738794483949,0.15,96538.0,96530.0,0.0001068]
[1738794484158,0.00317856,96531.0,96530.0,0.0001068]
[1738794484486,0.305379,96538.0,96530.0,0.0001068]
[1738794484692,0.00317856,96531.0,96530.0,0.0001068]
[1738794484859,0.207143,96552.0,96530.0,0.0001068]
[1738794484860,0.01042748,96547.0,96537.0,0.0829]
[1738794485067,0.01042748,96547.0,96538.0,0.10250365]
[1738794485278,0.01042748,96547.0,96539.0,0.155376]
[1738794485639,0.00014,96547.0,96538.0,0.10250365]
[1738794485840,0.00014,96547.0,96538.0,0.1035394]
[1738794486044,0.00014,96547.0,96540.0,0.155375]
[1738794486271,0.00014,96547.0,96538.0,0.10250365]
[1738794486878,0.00014,96547.0,96546.0,0.155366]
[1738794487101,0.00014,96547.0,96546.0,0.25786965]
[1738794489888,0.00014,96547.0,96546.0,0.28086965]
[1738794491041,0.00014,96547.0,96546.0,0.35646965]
[1738794492417,0.00014,96547.0,96546.0,0.38854514]
[1738794492778,0.00014,96547.0,96546.0,0.53854514]
[1738794493009,0.06313704,96591.0,96547.0,0.023]
[1738794493209,0.155301,96587.0,96570.0,0.155326]
[1738794493391,0.155301,96587.0,96571.0,0.10250365]
[1738794493727,0.15851871,96586.0,96571.0,0.10250365]
[1738794494965,0.00321671,96586.0,96571.0,0.10250365]
[1738794495166,0.15851871,96586.0,96571.0,0.10250365]
[1738794495402,0.15851871,96586.0,96571.0,0.25782865]
[1738794495608,0.00321671,96586.0,96571.0,0.25782865]
[1738794495813,0.00321671,96586.0,96571.0,0.10250365]
[1738794496012,0.155303,96585.0,96571.0,0.10250365]
[1738794496189,0.15852896,96585.0,96571.0,0.10250365]
[1738794496396,0.00322596,96585.0,96571.0,0.10250365]
[1738794497524,0.15852996,96585.0,96571.0,0.10250365]
[1738794497674,0.00322596,96585.0,96572.0,0.155324]
[1738794497876,0.00322596,96585.0,96573.0,0.10250365]
[1738794498499,0.00345046,96585.0,96573.0,0.10250365]
[1738794499191,0.155306,96584.0,96570.0,0.1560081]
[1738794499390,0.155309,96582.0,96571.0,0.10250365]
[1738794499729,0.15322502,96581.0,96571.0,0.10250365]
[1738794500285,0.00322502,96581.0,96571.0,0.10250365]
[1738794501429,0.00322502,96581.0,96573.0,0.155321]
[1738794501633,0.0002245,96585.0,96574.0,0.10353904]
[1738794501831,0.0002245,96585.0,96574.0,0.10250365]
[1738794502064,0.0002245,96585.0,96574.0,0.10353901]
[1738794502273,0.00322987,96584.0,96574.0,0.10353901]
[1738794502426,0.0002245,96585.0,96575.0,0.155319]
[1738794502623,0.0002245,96585.0,96576.0,0.10250365]
[1738794502849,0.00322987,96584.0,96576.0,0.10250365]
[1738794503023,0.0002245,96585.0,96576.0,0.10250365]
[1738794503769,0.00322987,96584.0,96577.0,0.00103532]
[1738794504003,0.0002245,96585.0,96578.0,0.10250365]
[1738794504177,0.0002245,96585.0,96584.0,0.155305]
[1738794504504,0.0002245,96585.0,96584.0,0.10250365]
[1738794507235,0.0002245,96585.0,96584.0,0.25780865]
[1738794507587,0.0002245,96585.0,96584.0,0.10250365]
[1738794510425,0.0002245,96585.0,96584.0,0.12176393]
[1738794512152,0.0002245,96585.0,96584.0,0.27706893]
[1738794512808,0.0002245,96585.0,96584.0,0.25780865]
[1738794513291,0.13686228,96604.0,96589.0,0.155296]
[1738794513516,0.13686228,96604.0,96590.0,0.1035388]
[1738794513711,0.00305429,96603.0,96590.0,0.2595469]
[1738794514268,0.00305429,96603.0,96592.0,0.155292]
[1738794514472,0.00305429,96603.0,96593.0,0.10250365]
[1738794514797,0.00305379,96602.0,96593.0,0.10250365]
[1738794515225,0.155274,96604.0,96593.0,0.10250365]
[1738794515590,0.00305429,96603.0,96593.0,0.10250365]
[1738794515795,0.15832929,96603.0,96593.0,0.10250365]
[1738794516444,0.00305429,96603.0,96580.0,0.1560081]
[1738794516656,0.155289,96595.0,96588.0,0.10250365]
[1738794516805,0.207025,96607.0,96588.0,0.10250365]
[1738794516806,0.207046,96597.0,96588.0,0.10250365]
[1738794517006,0.15833877,96594.0,96588.0,0.10250365]
[1738794517244,0.01012998,96609.0,96588.0,0.10250365]
[1738794517401,0.00304927,96593.0,96588.0,0.10250365]
[1738794517598,0.0792,96616.0,96588.0,0.10250365]
[1738794517806,0.05142897,96682.0,96581.0,0.00014028]
[1738794517807,0.155302,96586.0,96581.0,0.00014028]
[1738794518055,0.155302,96586.0,96582.0,0.10250365]
[1738794518233,0.00304745,96585.0,96582.0,0.10250365]
[1738794518902,0.00304745,96585.0,96581.0,0.00014028]
[1738794519121,0.15,96589.0,96581.0,0.00014028]
[1738794519122,0.00304695,96584.0,96581.0,0.00014028]
[1738794519342,0.155306,96584.0,96581.0,0.00014028]
[1738794519542,0.00304644,96583.0,96581.0,0.00014028]
[1738794520370,0.15835244,96583.0,96581.0,0.00014028]
[1738794521197,0.00304644,96583.0,96581.0,0.00014028]
[1738794521626,0.01012031,96589.0,96581.0,0.00014028]
[1738794521801,0.00304594,96582.0,96581.0,0.00014028]
[1738794522010,0.155304,96585.0,96581.0,0.00014028]
[1738794522188,0.00304594,96582.0,96581.0,0.00014028]
[1738794522404,0.155304,96585.0,96581.0,0.00014028]
[1738794522625,0.00304594,96582.0,96581.0,0.00014028]
[1738794522925,0.155304,96585.0,96581.0,0.00014028]
[1738794523124,0.00304594,96582.0,96581.0,0.00014028]
[1738794523330,0.155304,96585.0,96581.0,0.00014028]
[1738794523531,0.00304594,96582.0,96581.0,0.00014028]
[1738794523732,0.155305,96585.0,96581.0,0.00014028]
[1738794523963,0.00304594,96582.0,96581.0,0.00014028]
[1738794524256,0.0484,96592.0,96581.0,0.00024718]
[1738794524257,0.15,96591.0,96581.0,0.00024718]
[1738794524435,0.155299,96588.0,96581.0,0.00024718]
[1738794524733,0.1502245,96591.0,96581.0,0.00024718]
[1738794524933,0.207062,96589.0,96581.0,0.00024718]
[1738794525173,0.155302,96586.0,96581.0,0.00024718]
[1738794525381,0.00304435,96585.0,96582.0,0.10250365]
[1738794525764,0.0002245,96591.0,96582.0,0.10250365]
[1738794525950,0.00304376,96590.0,96582.0,0.10250365]
[1738794526565,0.0002245,96591.0,96583.0,0.0193558]
[1738794526775,0.00304414,96590.0,96584.0,0.10250365]
[1738794527193,0.0002245,96591.0,96584.0,0.10353887]
[1738794527578,0.0002245,96591.0,96585.0,0.0193558]
[1738794527774,0.00304459,96590.0,96586.0,0.10250365]
[1738794528033,0.0002245,96591.0,96586.0,0.10250365]
[1738794528367,0.00304459,96590.0,96586.0,0.10250365]
[1738794528733,0.0002245,96591.0,96586.0,0.10250365]
[1738794529015,0.00304459,96590.0,96586.0,0.10250365]
[1738794529271,0.00304459,96590.0,96587.0,0.0193558]
[1738794529470,0.0002245,96591.0,96588.0,0.10250365]
[1738794529829,0.00304459,96590.0,96588.0,0.10250365]
[1738794530248,0.0002245,96591.0,96588.0,0.10250365]
[1738794530683,0.00304459,96590.0,96588.0,0.10250365]
[1738794530857,0.00304459,96590.0,96589.0,0.0193558]
[1738794531046,0.00304459,96590.0,96589.0,0.12185945]
[1738794531246,0.0002245,96591.0,96589.0,0.12185945]
[1738794531488,0.0002245,96591.0,96590.0,0.10250365]
[1738794531710,0.0002245,96591.0,96590.0,0.25851175]
[1738794532066,0.0002245,96591.0,96590.0,0.44605738]
[1738794532468,0.0002245,96591.0,96590.0,0.46541318]
[1738794532869,0.0002245,96591.0,96590.0,0.31011818]
[1738794533927,0.0002245,96591.0,96590.0,0.46541318]
[1738794534133,0.0002245,96591.0,96590.0,0.31011818]
[1738794534898,0.0002245,96591.0,96590.0,0.46541318]
[1738794538121,0.14678795,96608.0,96593.0,0.15529]
[1738794538317,0.00306019,96607.0,96594.0,0.10250365]
[1738794538664,0.00022428,96615.0,96594.0,0.10250365]
[1738794538857,0.155267,96608.0,96594.0,0.10250365]
[1738794539073,0.155269,96607.0,96594.0,0.10250365]
[1738794539234,0.15832919,96607.0,96594.0,0.10250365]
[1738794539843,0.15527,96606.0,96595.0,0.0193558]
[1738794540070,0.00306019,96607.0,96596.0,0.10250365]
[1738794540217,0.15833118,96605.0,96596.0,0.10250365]
[1738794540417,0.155272,96605.0,96596.0,0.10250365]
[1738794540794,0.00305868,96604.0,96595.0,0.0193558]
[1738794540973,0.0814,96600.0,96590.0,0.1560081]
[1738794541136,0.155289,96594.0,96591.0,0.10250365]
[1738794541314,0.1583442,96593.0,96591.0,0.10250365]
[1738794541711,0.0030532,96593.0,96580.0,0.1560081]
[1738794541926,0.0030532,96593.0,96560.0,1.16962744]
[1738794541927,0.155303,96585.0,96571.0,0.0001069]
[1738794542167,0.24155118,96585.0,96571.0,0.0001069]
[1738794542869,0.24155118,96585.0,96576.0,0.09134725]
[1738794543271,0.57247549,96585.0,96576.0,0.09134725]
[1738794543729,0.49405483,96585.0,96576.0,0.09134725]
[1738794543938,0.54235483,96585.0,96576.0,0.09134725]
[1738794544580,0.89045483,96585.0,96576.0,0.09134725]
[1738794544784,0.01,96577.0,96576.0,0.09124045]
[1738794544964,0.61136852,96577.0,96576.0,0.03765657]
[1738794545939,0.60136852,96577.0,96576.0,0.03765657]
[1738794546162,0.305324,96572.0,96571.0,0.0001069]
[1738794546375,0.305345,96559.0,96558.0,0.08128676]
[1738794546548,0.48834865,96559.0,96558.0,0.08128676]
[1738794546768,0.155363,96548.0,96547.0,0.08199704]
[1738794546891,0.1583775,96548.0,96547.0,0.08199704]
[1738794547095,0.155379,96538.0,96529.0,0.03765657]
[1738794547301,0.15838847,96538.0,96529.0,0.03765657]
[1738794547492,0.00300947,96538.0,96529.0,0.03765657]
[1738794547748,0.155384,96535.0,96529.0,0.03765657]
[1738794547901,0.155384,96535.0,96530.0,0.00057411]
[1738794548117,0.00300746,96534.0,96530.0,0.00057411]
[1738794548346,0.155383,96536.0,96531.0,0.01929582]
[1738794548504,0.00300796,96535.0,96531.0,0.01929582]
[1738794550120,0.00300796,96535.0,96530.0,0.01986993]
[1738794550483,0.155382,96536.0,96530.0,0.01986993]
[1738794550659,0.00298703,96534.0,96531.0,0.10250365]
[1738794550872,0.1295,96559.0,96531.0,0.10250365]
[1738794550873,0.00298754,96535.0,96531.0,0.10250365]
[1738794551096,0.21764562,96546.0,96530.0,0.17587803]
[1738794551097,0.1295,96559.0,96530.0,0.17587803]
[1738794551295,0.15,96543.0,96530.0,0.01986993]
[1738794551502,0.155387,96533.0,96532.0,0.01929582]
[1738794551884,0.15837353,96533.0,96532.0,0.01929582]
[1738794552495,0.00298653,96533.0,96532.0,0.01929582]
[1738794552698,0.155387,96533.0,96532.0,0.01929582]
[1738794552916,0.00298653,96533.0,96532.0,0.01929582]
[1738794553330,0.15837353,96533.0,96530.0,0.00057411]
[1738794553735,0.00298653,96533.0,96530.0,0.00057411]
[1738794553937,0.155388,96533.0,96530.0,0.00057411]
[1738794554236,0.14400853,96560.0,96530.0,0.00057411]
[1738794554237,0.00298603,96532.0,96530.0,0.00057411]
[1738794554638,0.15,96534.0,96530.0,0.00057411]
[1738794555087,0.15837353,96533.0,96530.0,0.00057411]
[1738794555313,0.00298653,96533.0,96530.0,0.00057411]
[1738794555464,0.15539,96531.0,96530.0,0.00057411]
[1738794555662,0.155388,96532.0,96530.0,0.00057411]
[1738794555874,0.00298552,96531.0,96530.0,0.00057411]
[1738794556074,0.15837552,96531.0,96530.0,0.00057411]
[1738794557013,0.00298552,96531.0,96530.0,0.00057411]
[1738794557429,0.155389,96532.0,96530.0,0.00057411]
[1738794557632,0.00298552,96531.0,96530.0,0.00057411]
[1738794558562,0.15837552,96531.0,96530.0,0.00057411]
[1738794560755,0.00298552,96531.0,96530.0,0.10307776]
[1738794560969,0.16006328,96535.0,96530.0,0.10307776]
[1738794561163,0.00298612,96534.0,96530.0,0.10307776]
[1738794561393,0.00298612,96534.0,96530.0,0.12237358]
[1738794561599,0.15539,96531.0,96530.0,0.12237358]
[1738794561752,0.00298612,96534.0,96530.0,0.01986993]
[1738794562173,0.15837112,96534.0,96530.0,0.01986993]
[1738794562386,0.00298612,96534.0,96530.0,0.01986993]
[1738794562589,0.155389,96532.0,96530.0,0.01986993]
[1738794562793,0.00298461,96531.0,96530.0,0.01986993]
[1738794562990,0.00298461,96531.0,96530.0,0.00057411]
[1738794563529,0.15837461,96531.0,96530.0,0.00057411]
[1738794563705,0.15,96534.0,96530.0,0.00057411]
[1738794563892,0.00298461,96531.0,96530.0,0.00057411]
[1738794564093,0.15539,96532.0,96530.0,0.00057411]
[1738794564297,0.15837461,96531.0,96530.0,0.00057411]
[1738794568468,0.15837461,96531.0,96530.0,0.01986993]
[1738794568869,0.15837461,96531.0,96530.0,0.01886993]
[1738794569353,0.15837461,96531.0,96530.0,0.01829582]
[1738794571125,0.15837461,96531.0,96530.0,0.01840272]
[1738794571728,0.15837461,96531.0,96530.0,0.0001069]
[1738794573049,0.22048461,96531.0,96530.0,0.0001069]
[1738794573250,0.15837461,96531.0,96530.0,0.0001069]
[1738794575461,0.155398,96526.0,96525.0,0.0001068]
[1738794575652,0.155398,96526.0,96525.0,0.0002468]
[1738794575964,0.1583801,96526.0,96525.0,0.0002468]
[1738794578024,0.0029821,96526.0,96525.0,0.0002468]
[1738794578377,0.15,96541.0,96525.0,0.0002468]
[1738794578552,0.0029821,96526.0,96525.0,0.0002468]
[1738794578707,0.155392,96530.0,96525.0,0.0002468]
[1738794578914,0.0029821,96526.0,96525.0,0.0002468]